Cogmind - Beta 10.1 @@@ ROGUE MODE // 2020.10.19 @ 23:21:06 Player: Shamgod Result: Destroyed by D-53 Grenadier with Mini Grenade Launcher Performance ------------- Evolutions (0) 0 Regions Visited (2) 400 Robots Destroyed (42) 210 Value Destroyed (444) 444 Prototype IDs (0) 0 Alien Tech Used (0) 0 Bonus (-160) -160 TOTAL SCORE: 894 Bonus ------- Friendly Fire -160 Cogmind --------- Core Integrity 0/250 Matter 3/300 Energy 144/250 System Corruption 2% Temperature Cool (0) Movement Treading (160) Location -10/Mines Parts ------- > --- POWER (1) -------- Ion Engine > --- PROPULSION (2) --- Light Treads Wheel > --- UTILITY (2) ------ Small Storage Unit Medium Storage Unit > --- WEAPON (2) ------- Assault Rifle > --- INVENTORY (10) --- Ion Engine High-capacity Matter Pod (0) Sensor Array Heavy Assault Rifle Hammer Peak State ------------ > --- POWER ------------ Ion Engine > --- PROPULSION ------- Light Treads Compact Wheel > --- UTILITY ---------- Small Storage Unit Small Storage Unit > --- WEAPON ----------- EMP Blaster EMP Blaster > --- INVENTORY -------- Ion Engine Light Ion Engine Light Treads Compact Wheel Sensor Array Shotgun Shotgun Grenade Launcher [Rating: 10] Favorites ----------- Power Ion Engine Engine Ion Engine Propulsion Light Treads Treads Light Treads Wheel Wheel Utility Small Storage Unit Storage Small Storage Unit Weapon EMP Blaster Energy Gun Medium Laser Energy Cannon Beam Cannon Ballistic Gun Light Assault Rifle Ballistic Cannon Light Cannon Launcher EMP Blaster Impact Weapon Hammer Slashing Weapon Mining Claw Build | -11 -10 -10 ------- Run | Scr Mat Min Slots Evolved . | . . . Power . | . . . Propulsion . | . . . Utility . | . . . Weapon . | . . . Parts Attached 42 | 8 22 12 Power 1 | 1 . . Engine 1 | 1 . . Core . | . . . Reactor . | . . . Propulsion 13 | 3 4 6 Treads 4 | 1 . 3 Leg . | . . . Wheel 9 | 2 4 3 Hover . | . . . Flight . | . . . Utility 3 | 2 1 . Device . | . . . Storage 3 | 2 1 . Processor . | . . . Hackware . | . . . Protection . | . . . Artifact . | . . . Weapon 25 | 2 17 6 Energy Gun 2 | 1 1 . Energy Cannon 2 | . . 2 Ballistic Gun 8 | 1 6 1 Ballistic Cannon 1 | . . 1 Launcher 8 | . 6 2 Special Weapon . | . . . Impact Weapon 3 | . 3 . Slashing Weapon 1 | . 1 . Piercing Weapon . | . . . Special Melee Weapon . | . . . Unidentified Prototypes . | . . . Parts Lost 9 | . 1 8 Power . | . . . Propulsion 4 | . . 4 Utility . | . . . Weapon 5 | . 1 4 Highest Loss Streak 8 | . 1 8 Average Slot Usage (%) 99 | . 99 99 Engine 14 | . 14 14 Treads 13 | . 14 13 Wheel 14 | . 14 14 Storage 28 | . 28 28 Energy Gun 3 | . 4 . Energy Cannon 2 | . . 12 Ballistic Gun 8 | . 11 . Launcher 11 | . 10 14 Impact Weapon 1 | . 1 . Naked Turns . | . . . Heaviest Build 25 | 16 24 25 Greatest Support 32 | 32 20 26 Greatest Overweight (x) 2 | . 2 2 Average Overweight (x) 1 | . 1 1 Largest Inventory Capacity 10 | 8 10 10 Average Capacity 8 | 6 8 10 Most Carried 10 | 8 10 10 Average Carried 8 | 4 8 9 Final Capacity 10 | 8 10 10 Final Carried 10 | 8 10 5 Class Distribution -------------------- 87% | Mutant 12% | Commander-Mutant Dominant Class ---------------- Mutant | -10/Materials Commander-Mutant | -10/Mines Resources | -11 -10 -10 ----------- Run | Scr Mat Min Matter Collected 670 | 282 329 59 Remotely . | . . . Salvage Created 1015 | 54 752 209 Parts 60 | 3 45 12 Haulers Intercepted 1 | . 1 . Recyclers Shooed 2 | . 1 1 Parts Field Recycled . | . . . Retrieved Matter . | . . . Parts Self-Destructed . | . . . Prevented . | . . . Kills | -11 -10 -10 ------- Run | Scr Mat Min Combat Hostiles Destroyed 28 | . 12 16 Guns 3 | . 3 . Cannons 2 | . . 2 AOE 23 | . 9 14 Classes Destroyed 8 | 1 6 1 Worker 3 | . 3 . Builder 2 | . 1 1 Hauler 1 | . 1 . Recycler 4 | 1 3 . Watcher 3 | . 3 . Swarmer 9 | . 6 3 Grunt 7 | . 6 1 Assembled 13 | . . 13 Best Kill Streak 14 | 1 10 14 Combat Bots Only 13 | . 6 13 Max Kills in Single Turn 5 | 1 5 4 Gunslinging . | . . . Exploded 5 | . 5 3 Melee . | . . . Uniques/NPCs Destroyed . | . . . Combat | -11 -10 -10 -------- Run | Scr Mat Min Damage Taken 1200 | . 336 864 Core 252 | . 28 224 Absorbed by Shields . | . . . Core Remaining (%) 100 | 100 . . Volleys Fired 62 | 2 48 12 Largest 2 | 2 2 2 Hottest 93 | 70 70 93 Shots Fired 117 | 4 91 22 Gun 64 | 4 60 . Cannon 7 | . . 7 Launcher 46 | . 31 15 Special . | . . . Kinetic 55 | 2 53 . Thermal 16 | 2 7 7 Explosive 7 | . 1 6 Electromagnetic 39 | . 30 9 Robot Hit Streak 5 | 3 5 3 Robot Miss Streak 5 | 1 5 2 Penetration Max . | . . . Secondary Targets . | . . . Shots Hit Robots 58 | 3 48 7 Core Hits 78 | 2 36 40 Critical Hits . | . . . Critical Kills . | . . . Critical Parts Destroyed . | . . . Melee Attacks 6 | . 6 . Impact 6 | . 6 . Slashing . | . . . Piercing . | . . . Sneak Attacks . | . . . Combat Hostiles . | . . . Follow-up Attacks . | . . . Damage Inflicted 2196 | 32 1117 1047 Guns 363 | 32 331 . Cannons 89 | . . 89 Explosions 1744 | . 786 958 Melee . | . . . Ramming . | . . . Kinetic 301 | 7 294 . Thermal 353 | 25 152 176 Explosive 644 | . 58 586 Electromagnetic 898 | . 613 285 Impact . | . . . Slashing . | . . . Piercing . | . . . Highest Corruption 2 | . 2 2 Average Corruption 1 | . 1 2 Corruption Purged . | . . . Effects 5 | . 3 2 Energy Discharges 2 | . . 2 Data Loss (minor) 2 | . 2 . Targeting Errors 1 | . 1 . Overload Shots . | . . . Overflow Damage 95 | . 64 31 Projectiles . | . . . Explosions 95 | . 64 31 Melee . | . . . Knockbacks . | . . . Impact . | . . . Kinetic . | . . . Secondary . | . . . Self-Inflicted Damage 194 | . 140 54 Shots 15 | . 12 3 Rammed . | . . . Targets Rammed . | . . . Kicked . | . . . Crushed . | . . . Highest Temperature 99 | 40 98 99 Average Temperature 25 | 23 22 30 Received Heat Transfer 104 | . 84 20 Siege Activations . | . . . Robots Corrupted . | . . . Combat Hostiles . | . . . Parts Fried 2 | . 2 . Impact Corruptions . | . . . Robots Melted . | . . . Combat Hostiles . | . . . Parts Melted 1 | . . 1 Heat Transferred 558 | 74 299 185 Parts Sabotaged . | . . . Parts Stolen . | . . . Parts Stripped . | . . . Power Chain Reactions 6 | . 5 1 Missiles Intercepted . | . . . Alert | -11 -10 -10 ------- Run | Scr Mat Min Peak Influence 401 | 5 401 180 Initial 110 | . 3 110 Average 164 | 2 178 160 Maximum Alert Level 2 | . 2 . Low Security (%) 62 | 100 48 100 Level 1 32 | . 45 . Level 2 4 | . 6 . Level 3 . | . . . Level 4 . | . . . Level 5 . | . . . High Security . | . . . Max Security . | . . . Squads Dispatched 2 | . 2 . Investigation 1 | . 1 . Extermination . | . . . Reinforcement 1 | . 1 . Assault . | . . . Garrison . | . . . Intercept . | . . . Construction Impeded . | . . . Haulers Reinforced . | . . . Stealth | -11 -10 -10 --------- Run | Scr Mat Min Distress Signals 3 | . 1 2 Communications Jammed . | . . . Distress Signals . | . . . Times Spotted 43 | . 20 23 Peak Tracking Total 9 | . 6 9 Tactical Retreats 1 | . 1 . Traps | -11 -10 -10 ------- Run | Scr Mat Min Traps Triggered 2 | . 2 . Indirectly . | . . . Trap Hack Attempts . | . . . Triggered . | . . . Disarmed . | . . . Reprogrammed . | . . . Reused . | . . . Traps Extracted . | . . . Installed . | . . . Triggered . | . . . Machines | -11 -10 -10 ---------- Run | Scr Mat Min Machines Disabled 5 | . 5 . Max in Single Turn 2 | . 2 . Machines Sabotaged . | . . . Garrisons Compromised . | . . . Overloaded Fab Kills . | . . . Fab Network Shutdowns . | . . . Hacking | -11 -10 -10 --------- Run | Scr Mat Min Machines Accessed 5 | . 5 . Terminals 5 | . 5 . Fabricators . | . . . Repair Stations . | . . . Recycling Units . | . . . Scanalyzers . | . . . Garrison Access . | . . . Total Hacks 14 | . 14 . Successful 8 | . 8 . Failed 6 | . 6 . Catastrophic . | . . . Database Lockouts . | . . . Manual 11 | . 11 . Terminals 14 | . 14 . Fabricators . | . . . Repair Stations . | . . . Recycling Units . | . . . Scanalyzers . | . . . Garrison Access . | . . . Terminal Hacks 5 | . 5 . Branch Access Points 1 | . 1 . Terminal Index 1 | . 1 . Hauler Manifests 1 | . 1 . Zone Layout 2 | . 2 . Fabricator Hacks . | . . . Repair Station Hacks . | . . . Recycling Unit Hacks . | . . . Scanalyzer . | . . . Garrison Access Hacks . | . . . Unauthorized Hacks 3 | . 3 . Terminals 3 | . 3 . Assimilate 1 | . 1 . Botnet 1 | . 1 . Operators 1 | . 1 . Fabricators . | . . . Repair Stations . | . . . Recycling Units . | . . . Scanalyzers . | . . . Garrison Access . | . . . Data Cores Recovered . | . . . Used . | . . . Hacking Detections 4 | . 4 . Full Trace Events 2 | . 2 . Feedback Events 1 | . 1 . Corruption 1 | . 1 . Feedback Blocked . | . . . Robot Schematics Acquired . | . . . Robots Built . | . . . Matter . | . . . Time . | . . . Total Robot Build Rating . | . . . Part Schematics Acquired . | . . . Parts Built . | . . . Matter . | . . . Time . | . . . Total Part Build Rating . | . . . Parts Repaired . | . . . Time . | . . . Parts Recycled . | . . . Recycled Matter . | . . . Retrieved Matter . | . . . Retrieved Components . | . . . Parts Scanalyzed . | . . . Part Schematics Acquired . | . . . Parts Damaged . | . . . Bothacking | -11 -10 -10 ------------ Run | Scr Mat Min Used RIF Installer . | . . . Robots Hacked . | . . . Non-combat . | . . . Combat . | . . . Robot Hacks Applied . | . . . Relay Couplers Released . | . . . Robots Rewired . | . . . Allies Hacked . | . . . Hacks Repelled . | . . . Allies | -11 -10 -10 -------- Run | Scr Mat Min Total Allies 4 | . 1 3 Largest Group 4 | . 1 4 Highest-Rated Group 50 | . 10 50 Highest-Rated Ally 16 | . 10 16 Total Orders . | . . . Ally Attacks 5 | . . 5 Total Damage 10 | . . 10 Kills 1 | . . 1 Allies Corrupted . | . . . Allies Melted . | . . . Intel | -11 -10 -10 ------- Run | Scr Mat Min Robot Analysis Total . | . . . Derelict Logs Recovered 1 | . . 1 Drone Launches . | . . . Drone Recoveries . | . . . Exploration | -11 -10 -10 ------------- Run | Scr Mat Min Turns Passed 1425 | 80 1034 311 Spaces Moved 936 | 48 661 227 Core 1 | 1 . . Treads 235 | 13 221 1 Legs . | . . . Wheels 700 | 34 440 226 Hover . | . . . Flight . | . . . Fastest Speed 50 | 50 90 90 Average Speed 116 | 115 121 100 Slowest Speed 180 | 160 180 180 Overloaded Moves . | . . . Propulsion Burnouts . | . . . Robots Hopped . | . . . Cave-ins Triggered . | . . . Exploration Rate (%) 49 | 5 94 50 Regions Visited 2 Branch Regions 1 Pre-discovered Areas . | . . . Known Exits Taken 1 | . 1 . Unknown Exits Taken 1 | 1 . . Scrap Searched . | . . . Spaces Dug 5 | . 5 . Terrain Destroyed 70 | . 31 39 Melee 5 | . 5 . Projectile . | . . . AOE 65 | . 26 39 Terrain Rammed . | . . . Walls Destroyed . | . . . Machines Disabled . | . . . Actions | -11 -10 -10 --------- Run | Scr Mat Min Total 1146 | 65 794 287 Wait 61 | . 29 32 Move 934 | 47 660 227 Hop . | . . . Pick Up 23 | 8 12 3 Fast Attach 11 | 7 3 1 Attach 9 | . 2 7 Detach . | . . . Swap 22 | 1 17 4 Drop 18 | . 17 1 Fire 62 | 2 48 12 Melee 6 | . 6 . Ram . | . . . Kick . | . . . Crush . | . . . Escape Stasis . | . . . Rewire . | . . . Trap . | . . . Miscellaneous . | . . . Route ------- -11/Scrapyard -10/Materials (discovered 4 exits: [*Mat x3] / *Min) -10/Mines History --------- Turn | Location | Event 30 | -11/Scrapyard | Discovered new exit (range 15) 81 | -11/Scrapyard | Entered Materials 310 | -10/Materials | Discovered new exit (range 10) 313 | -10/Materials | Build established: Mutant 448 | -10/Materials | Discovered new exit (range 15) 839 | -10/Materials | Discovered new exit (range 14) 888 | -10/Materials | Discovered new exit (range 16) 963 | -10/Materials | Identified exit to Mines 1115 | -10/Materials | Entered Mines 1115 | -10/Mines | Accompanied by 1 ally 1202 | -10/Mines | Learned location of 1 exit from Materials 1202 | -10/Mines | Assisted by bots powering up and referring to "LRC-V3" 1348 | -10/Mines | Received a Rocket Launcher from a helpful Derelict 1367 | -10/Mines | Assembled infested the area 1411 | -10/Mines | Core integrity fell below 50% 1419 | -10/Mines | Core integrity fell below 20% 1423 | -10/Mines | Destroyed 13 combat bots 1426 | -10/Mines | Destroyed by D-53 Grenadier with Mini Grenade Launcher Last Messages --------------- 01402_ R-06 Scavenger sends out distress signal. 01405_ R-06 Scavenger suffers critical hit. 01406_ C-30 ARC bursts open, deploying its payload. 01406_ D-53 Grenadier unfolds itself. 01406_ Technician 1a destroyed. 01406_ R-06 Scavenger destroyed. 01409_ Destroyed Lgt. Ion Engine. 01410_ Y-45 Defender destroyed. 01412_ Lgt. Treads destroyed. 01412_ Rocket Launcher destroyed. 01414_ Wheel destroyed. 01414_ Beam Cannon destroyed. 01416_ The unstable cave ceiling collapses. 01416_ as-91549 destroyed. 01418_ The unstable cave ceiling collapses. 01423_ Acquired Hvy. Assault Rifle. 01423_ Com. Wheel destroyed. 01423_ Lgt. Cannon destroyed. 01425_ Acquired Lgt. Treads. 01426_ Machine disabled. Map ----- +----------------------------------------------------+ | #?## ##????## ##????## # | | ##??######??????# ##?### #? | | ##???????????????# #### ### #?? | | #????????????????# ### #??????? | | ##????????????????# ## ###??????? | | ##????????????????## ### ##????????? | | #????????????????## ##?# ] ##?????????? | | ##????????????#### ##??# ## ##??????????? | | ############## #???# " ######???????????? | | * [ #??## %##????????????????? | | [ = ##??? ##????????????????? | | =############ ##???# ????????????????? | | ###????????# #???## ##???????????????? | | #????????## ##??## #???????????????? | | #????????######???# ##??????????????? | | #????????????????# ???????????????? | | # #???????????????## #???????????????? | | # #???????????????#### ##??????????????? | | ## #?????????######## dd ##?????????????? | | ?## #????????##"/!" ## ##????????????? | | ??#### #???????#""]!" #####????????? | | ??????# #???????# #????????? | | ???????# ##????????# ### #????????? | | ????????####????????## ##????????????? | | ??????????????????### = #????????????? | | ??????????????????# %@ ##????????????? | | ?????????????????# = ##?????????????? | | ??????????????# = | #?????????????? | | ?????????????# ## ??????????? | | ?????????????# ## !% ### ???????? | | ?????????????# ??# = #??#### ???????? | | ?????????????# ??# = #??????? ???????? | | ?????????????## ???## #???????????????? | | ??????????????###????? % #???????????????? | | ?????????????????????# ???????????????? | | ?????????????????????# ##??????????????? | | ?????????????????????### % #???????????????? | | ???????????????????????## a ##???????????????? | | ???????????????????????? %% # #????????????????? | | ???????????????????????? ####????????????????? | | ????????????????????????? # ????????????????????? | | ?????????????????????????????????????????????????? | | ?????????????????????????????????????????????????? | | ?????????????????????????????????????????????????? | | ?????????????????????????????????????????????????? | | ?????????????????????????????????????????????????? | | ?????????????????????????????????????????????????? | | ?????????????????????????????????????????????????? | | ?????????????????????????????????????????????????? | | ?????????????????????????????????????????????????? | +----------------------------------------------------+ Best States ------------- Heat Dissipation 25 Energy Generation 10 Energy Capacity 250 Matter Stores 300 Matter Capacity 300 Sight Range 16 Terrain Scan Density 10 Evasion (%) 42 Recoil Reduction 1 Item Schematics ----------------- None Robot Schematics ------------------ None Fabricated ------------ Nothing Alien Tech Used ----------------- None Achievements -------------- Quick And Dirty Challenges ------------ None Game ------ Seed DiametricAerolevAccelerator Manual? 0 Play Time 00:25:44 Cumulative 17.5 hours Start 2020.10.19 @ 22:56:02 End 2020.10.19 @ 23:21:06 Sessions 1 Manual Loads 0 Difficulty Rogue Special Mode None Game No. 28 Rogue 28 Adventurer 0 Explorer 0 Win Type - Total 0 Types 0/0/0/0/0/0/0/0/0 Lore% 15 Gallery% 18 Achievement% 16 Wizard Run 0 Options --------- ASCII 0 Keyboard 1 Movement Numpad Keybinds 0 Fullscreen 1 Font 16/Dina Map View 76x50 Tactical HUD 1 Map Filters NONE Filters NONE Steam 1 RUN: bafa5694-8095-4161-b922-2e2cc28436c0